bitfinex-derivatives/quotes_SOLF0:USTF0_20250808
["timestamp","ask_amount","ask_price","bid_price","bid_amount"]
[1754676300172,6.38442606,179.14,179.04,374.86]
[1754676300369,5.5845,179.05,179.02,6.38442606]
[1754676300671,3.11,179.09,179.01,80.57743861]
[1754676300868,3.11,179.09,179.03,6.38442606]
[1754676301262,3.11,179.09,179.01,80.57743861]
[1754676301461,3.11,179.03,179.01,80.57743861]
[1754676301666,3.11,179.1,179.01,80.57743861]
[1754676301863,5.5854,179.02,179.01,80.57743861]
[1754676302067,8.6954,179.02,179.01,80.57743861]
[1754676302268,3.11,179.01,178.96,6.38442606]
[1754676302573,3.11,179.06,178.96,6.38442606]
[1754676302774,3.11,179.06,178.98,6.38442606]
[1754676302971,3.11,179.08,178.98,6.38442606]
[1754676303166,11.1623,179.16,178.96,6.38442606]
[1754676303167,3.11,179.06,178.96,6.38442606]
[1754676303579,5.5866,178.99,178.96,6.38442606]
[1754676303866,6.38442606,179.07,178.96,6.38442606]
[1754676304069,6.38442606,179.07,178.94,374.88]
[1754676304070,3.11,179.06,178.98,6.38442606]
[1754676304577,3.11,179.03,179.02,6.38442606]
[1754676304873,3.11,179.05,179.02,9.36442606]
[1754676305075,8.6945,179.05,179.04,6.38442606]
[1754676305473,3.11,179.05,179.04,6.38442606]
[1754676305669,8.6945,179.05,179.04,6.38442606]
[1754676305869,3.11,179.05,179.04,6.38442606]
[1754676306065,3.11,179.07,179.04,9.36442606]
[1754676306273,3.03,179.14,179.04,6.38442606]
[1754676306770,3.03,179.14,179.01,2.97]
[1754676306970,3.03,179.14,179.04,6.38442606]
[1754676307369,5.5845,179.05,179.04,6.38442606]
[1754676307776,3.03,179.09,179.06,2.97]
[1754676307975,145.2,179.19,179.08,6.38442606]
[1754676308172,3.03,179.11,179.1,6.38442606]
[1754676308570,8.6126,179.11,179.1,6.38442606]
[1754676308978,3.03,179.09,179.08,6.38442606]
[1754676309174,3.03,179.09,179.04,2.97]
[1754676309175,3.03,179.09,179.06,6.38442606]
[1754676309374,3.03,179.07,179.06,6.38442606]
[1754676309574,5.5839,179.07,179.06,6.38442606]
[1754676309780,3.03,179.09,179.06,6.38442606]
[1754676309974,3.03,179.11,179.08,9.35442606]
[1754676310172,8.6126,179.11,179.1,6.38442606]
[1754676310374,5.5826,179.11,179.1,9.35442606]
[1754676310569,5.5839,179.07,179.03,5.585]
[1754676310773,5.5839,179.07,179.06,6.38442606]
[1754676310972,6.38442606,179.15,179.06,6.38442606]
[1754676311173,5.5839,179.07,179.06,6.38442606]
[1754676311578,3.03,179.13,179.07,2.97]
[1754676311881,8.6123,179.12,179.11,6.38442606]
[1754676312272,3.03,179.2,179.11,9.35442606]
[1754676312475,3.03,179.2,179.14,6.38442606]
[1754676312884,5.5814,179.15,179.14,6.38442606]
[1754676313079,0.04274378,179.19,179.15,2.97]
[1754676313378,5.582,179.13,179.12,2.606e-05]
[1754676313582,5.582,179.13,178.97,6.38442606]
[1754676313583,3.03,179.15,179.07,2.97]
[1754676313788,3.03,179.15,179.07,9.35442606]
[1754676314082,5.5835,179.08,179.07,9.35442606]
[1754676315284,5.5835,179.08,179.07,6.38442606]
[1754676315487,8.6135,179.08,179.07,6.38442606]
[1754676316089,5.5833,179.09,179.08,2.97]
[1754676316385,3.03,179.08,179.06,6.38442606]
[1754676316786,8.6139,179.07,179.06,6.38442606]
[1754676316980,3.03,179.07,179.04,9.35442606]
[1754676317175,3.03,179.13,179.04,6.38442606]
[1754676317387,6.38442606,179.1,179.0,6.38442606]
[1754676317681,3.03,179.09,179.0,6.38442606]
[1754676317882,6.38442606,179.06,178.96,6.38442606]
[1754676318085,3.03,179.05,178.96,6.38442606]
[1754676318278,5.587,178.97,178.96,6.38442606]
[1754676318478,3.03,178.98,178.95,9.35442606]
[1754676318783,5.5873,178.96,178.95,6.38442606]
[1754676318981,3.03,178.95,178.91,7.35519151]
[1754676319181,3.03,178.94,178.91,3.94076545]
[1754676319395,3.03,178.99,178.9,6.38442606]
[1754676319586,3.03,178.99,178.91,6.38442606]
[1754676320188,3.03,178.99,178.9,2.97]
[1754676320384,3.03,178.99,178.91,6.38442606]
[1754676320586,0.03717306,178.97,178.91,6.38442606]
[1754676320786,3.03,178.96,178.92,2.97]
[1754676320988,5.5882,178.93,178.92,2.97]
[1754676321183,3.03,178.95,178.9,6.38442606]
[1754676321389,0.03717306,178.97,178.92,2.97]
[1754676321390,3.03,178.94,178.92,2.97]
[1754676321689,3.03,178.96,178.9,6.38442606]
[1754676321883,0.03979727,178.95,178.88,227.19891951]
[1754676322088,5.5887,178.92,178.88,227.19891951]
[1754676322386,0.03979727,178.95,178.93,2.97]
[1754676322583,0.03979727,178.95,178.92,6.38442606]
[1754676322784,0.03979727,178.95,178.88,220.81449345]
[1754676322989,3.03,178.91,178.88,220.81449345]
[1754676323188,3.03,178.91,178.88,223.78449345]
[1754676323384,3.03,178.95,178.89,14.94392606]
[1754676323590,11.1696,179.05,178.93,6.38442606]
[1754676323791,3.03,179.03,178.95,6.38442606]
[1754676324092,6.38442606,179.04,178.95,6.38442606]
[1754676324093,0.04055176,179.01,178.95,6.38442606]
[1754676324387,5.5873,178.96,178.92,5.5883]
[1754676324688,3.03,178.98,178.94,2.97]
[1754676324890,3.03,179.03,178.97,6.38442606]
[1754676325289,3.03,179.03,178.99,6.38442606]
[1754676325489,3.03,179.01,178.99,6.38442606]
[1754676325690,3.03,179.0,178.99,6.38442606]
[1754676326191,3.03,179.0,178.96,6.38442606]
[1754676326387,0.03705093,179.01,178.96,6.38442606]
[1754676326587,3.03,178.99,178.98,6.38442606]
[1754676326887,3.06705093,179.01,178.98,6.38442606]
[1754676327081,3.06705093,179.01,178.88,220.81449345]
[1754676327082,0.03705093,179.01,179.0,6.38442606]
[1754676327586,3.03,179.1,179.0,6.38442606]
[1754676327891,5.5857,179.01,179.0,6.38442606]
[1754676328087,3.03,179.02,179.0,6.38442606]
[1754676328594,5.5858,179.01,179.0,6.38442606]
[1754676328792,3.03,179.01,178.98,2.97]
[1754676329092,3.03,179.0,178.95,2.97]
[1754676329291,3.03,178.98,178.96,6.38442606]
[1754676329489,3.03,178.98,178.95,2.97]
[1754676329693,5.5872,178.97,178.95,9.35442606]
[1754676330594,3.06557516,178.99,178.96,2.97]
[1754676330795,5.5867,178.98,178.96,2.97]
[1754676330990,5.5867,178.98,178.97,6.38442606]
[1754676331383,5.587,178.97,178.96,9.35442606]
[1754676331683,5.587,178.97,178.96,2.97]
[1754676331895,5.5879,178.95,178.94,6.38442606]
[1754676332293,6.38442606,179.03,178.92,6.38442606]
[1754676332592,6.38442606,179.03,178.9,148.63]
[1754676332593,5.5888,178.92,178.9,155.01442606]
[1754676332994,5.5888,178.91,178.9,9.35442606]
[1754676333295,5.5888,178.91,178.9,6.38442606]
[1754676333596,5.5888,178.91,178.9,9.35442606]
[1754676333790,3.03,178.91,178.89,6.38442606]
[1754676333991,3.03,178.91,178.88,75.79449345]
[1754676333992,3.03,178.9,178.88,82.17891951]
[1754676334198,0.04280197,178.93,178.88,82.17891951]
[1754676334396,0.04280197,178.93,178.9,6.38442606]
[1754676334700,3.03,179.04,178.93,2.97]
[1754676334992,3.03,179.04,178.96,6.38442606]
[1754676335193,3.03,179.04,178.94,6.38442606]
[1754676335398,11.1696,179.05,178.96,6.38442606]
[1754676335399,5.587,178.97,178.96,6.38442606]
[1754676335697,5.587,178.97,178.96,9.35442606]
[1754676335898,5.5864,178.99,178.96,6.38442606]
[1754676336093,5.5864,178.99,178.95,0.03929739]
[1754676336094,3.1,179.04,178.98,6.38442606]
[1754676336489,3.1,178.99,178.94,2.98]
[1754676336693,3.1,178.99,178.88,0.97271914]
[1754676336893,5.5859,179.01,178.97,9.36442606]
[1754676337196,9.48442606,179.06,178.97,2.98]
[1754676337397,3.1,179.05,178.96,6.38442606]
[1754676337596,5.5863,179.0,178.98,9.36442606]
[1754676337996,3.1,179.04,179.0,2.98]
[1754676338294,3.1,179.05,179.03,6.38442606]
[1754676338494,3.1,179.09,179.02,6.38442606]
[1754676338701,3.1,179.09,179.02,0.0374989]
[1754676338995,5.5851,179.03,179.02,0.0374989]
[1754676339194,8.6851,179.03,179.02,0.0374989]
[1754676340289,8.6851,179.03,179.02,9.89e-05]
[1754676350399,0.03741501,179.04,179.02,9.89e-05]
[1754676350605,3.1,179.03,179.02,9.89e-05]
[1754676351006,8.6851,179.03,179.02,9.89e-05]
[1754676352009,5.5851,179.03,179.02,9.89e-05]
[1754676354905,5.62231501,179.04,179.02,9.89e-05]
[1754676355107,0.03741501,179.04,179.02,9.89e-05]
[1754676355805,5.5851,179.03,179.02,9.89e-05]
[1754676356205,0.03741501,179.04,179.02,9.89e-05]
[1754676356510,3.13741501,179.04,179.02,2.9800989]
[1754676356906,3.1,179.03,179.02,9.89e-05]
[1754676357703,5.5851,179.03,179.02,9.89e-05]
[1754676358500,0.03741501,179.04,179.02,9.89e-05]
[1754676358501,5.62231501,179.04,179.02,9.89e-05]
[1754676358709,0.03741501,179.04,179.02,9.89e-05]
[1754676358910,8.6851,179.03,179.02,9.89e-05]
[1754676359106,3.1,179.03,179.02,9.89e-05]
[1754676359306,0.03741501,179.04,179.02,9.89e-05]
[1754676359508,0.03741501,179.04,179.02,2.9800989]
[1754676359807,3.13741501,179.04,179.02,2.9800989]
[1754676360014,3.1,179.03,179.02,9.89e-05]
[1754676360308,0.03741501,179.04,179.02,9.89e-05]
[1754676360508,5.5851,179.03,179.02,9.89e-05]
[1754676360905,8.6851,179.03,179.02,9.89e-05]
[1754676361107,0.03741501,179.04,179.03,2.98]
[1754676361303,3.1,179.03,179.02,6.38452496]
[1754676362302,0.03741501,179.04,179.02,9.36452496]
[1754676362506,0.03741501,179.04,179.03,2.98]
[1754676363012,0.03741501,179.04,179.02,6.38452496]
[1754676363216,0.03741501,179.04,179.03,2.98]
[1754676363715,3.1,179.03,179.02,9.89e-05]
[1754676364214,3.1,179.03,178.98,6.38442606]
[1754676364418,0.03741501,179.04,179.02,9.36442606]
[1754676364709,3.1,179.03,179.02,6.38442606]
[1754676364910,12.33437515,179.08,179.03,2.98]
[1754676365216,3.1,179.07,179.03,2.98]
[1754676365417,3.1,179.08,179.02,6.38442606]
[1754676366312,5.5839,179.07,179.03,2.98]
[1754676366512,3.18,179.05,179.03,2.98]
[1754676366816,3.18,179.05,179.04,6.38442606]
[1754676367214,5.5845,179.05,179.02,5.5853]
[1754676367414,15.51437515,179.05,178.96,2.98]
[1754676367618,3.18,179.04,178.98,6.38442606]
[1754676367821,3.18,179.05,179.02,9.36442606]
[1754676368111,3.18,179.04,179.02,9.36442606]
[1754676368312,0.03555765,179.03,179.02,6.38442606]
[1754676368517,3.18,179.04,179.02,6.42660977]
[1754676368822,3.22153003,179.04,179.02,14.99180977]
[1754676369118,3.22153003,179.04,179.02,6.42660977]
[1754676369420,3.18,179.03,179.02,0.04218371]
[1754676370417,0.04153003,179.04,179.02,0.04218371]
[1754676370612,3.18,179.03,179.02,0.04218371]
[1754676371111,8.7651,179.03,179.02,0.04218371]
[1754676371307,3.18,179.03,179.02,0.04218371]
[1754676371714,8.7651,179.03,179.02,0.04218371]
[1754676372213,3.18,179.03,178.97,6.38442606]
[1754676372618,3.18,179.03,178.99,3.93192975]
[1754676372809,8.7656,179.02,179.01,3.93192975]
[1754676373116,8.7656,179.02,178.88,520.67271914]
[1754676373117,3.18,179.02,179.0,3.03]
[1754676373316,3.18,179.02,179.01,3.93192975]
[1754676373516,0.03788919,179.03,179.01,6.96192975]
[1754676373713,0.03788919,179.03,179.02,3.03]
[1754676373913,12.33437515,179.08,179.02,3.03]
[1754676374114,3.22014179,179.04,179.03,3.93192975]
[1754676374314,8.80494179,179.04,179.03,3.93192975]
[1754676374815,5.62494179,179.04,179.03,3.93192975]
[1754676375120,8.80494179,179.04,179.03,3.93192975]
[1754676375716,3.18,179.02,179.01,3.93192975]
[1754676376111,3.22014179,179.04,179.01,9.51762975]
[1754676376316,3.22014179,179.04,178.92,238.93192975]
[1754676376317,0.04014179,179.04,179.03,6.96192975]
[1754676376820,3.18,179.05,179.03,6.96192975]
[1754676377024,3.22159344,179.05,179.04,3.93192975]
[1754676378424,5.62609344,179.05,179.03,3.93192975]
[1754676378623,3.18,179.04,179.03,3.93192975]
[1754676378922,3.18,179.05,179.03,3.93192975]
[1754676379121,3.22042384,179.05,179.03,3.93192975]
[1754676379319,3.22042384,179.05,179.03,6.96192975]
[1754676379729,3.18,179.04,179.03,3.93192975]
[1754676379920,0.04042384,179.05,179.03,12.54702975]
[1754676380222,3.22042384,179.05,179.03,6.96192975]
[1754676380418,3.22042384,179.05,179.04,5.5848]
[1754676380618,3.18,179.04,179.03,3.93192975]
[1754676380819,3.18,179.04,179.03,9.51692975]
[1754676381019,3.18,179.04,179.03,3.93192975]
[1754676381927,0.04042384,179.05,179.03,3.93192975]
[1754676381928,0.04042384,179.05,179.04,3.03]
[1754676382515,3.18,179.07,179.03,3.93192975]
[1754676382721,3.18,179.07,179.06,3.93192975]
[1754676383525,8.7638,179.07,179.06,3.93192975]
[1754676384426,5.5838,179.07,179.03,8.6149]
[1754676384628,3.18,179.06,179.05,3.93192975]
[1754676385428,3.18,179.06,179.03,5.5849]
[1754676385622,3.18,179.06,179.05,3.93192975]
[1754676390926,0.0411305,179.07,179.05,12.54642975]
[1754676391134,0.0411305,179.07,179.06,3.03]
[1754676391837,0.0411305,179.07,179.06,6.96192975]
[1754676392128,3.2211305,179.07,179.06,12.54612975]
[1754676392533,3.2211305,179.07,179.06,6.96192975]
[1754676393029,3.2211305,179.07,179.02,3.03]
[1754676393235,3.2211305,179.07,179.06,3.93192975]
[1754676394124,3.2211305,179.07,179.06,6.96192975]
[1754676394334,8.8050305,179.07,179.04,5.5847]
[1754676394633,0.0411305,179.07,179.06,3.93192975]
[1754676395024,0.0411305,179.07,179.06,6.96192975]
[1754676395335,3.18,179.12,179.07,3.03]
[1754676395526,12.33437515,179.16,179.12,3.03]
[1754676395731,3.18,179.17,179.16,3.03]
[1754676395928,3.18,179.17,179.15,1.06702204]
[1754676396134,3.17,179.16,179.15,1.06702204]
[1754676396530,3.17,179.16,179.1,3.93192975]
[1754676396531,5.5819,179.14,179.1,9.51462975]
[1754676396732,3.17,179.13,179.1,9.51462975]
[1754676397236,3.17,179.13,179.1,9.55746331]
[1754676397428,3.17,179.13,179.12,3.93192975]
[1754676397629,3.17,179.18,179.12,3.93192975]
[1754676397831,3.17,179.18,179.15,3.93192975]
[1754676398033,5.581,179.16,179.15,3.93192975]
[1754676398226,8.751,179.16,179.15,3.93192975]
[1754676399135,5.5808,179.17,179.15,3.93192975]
[1754676399338,3.17,179.17,179.15,3.93192975]
[1754676399531,8.7509,179.17,179.15,3.93192975]
[1754676399731,3.17,179.15,179.14,0.0371938]
[1754676400137,8.7514,179.15,179.14,0.0371938]
[1754676400639,3.17,179.15,179.14,0.0371938]
[1754676401737,8.7514,179.15,179.14,0.0371938]
[1754676403133,3.17,179.12,179.1,3.93192975]
[1754676403531,3.17,179.15,179.1,3.93192975]
[1754676403736,3.17,179.15,179.08,3.93192975]
[1754676403933,5.5828,179.11,179.08,3.93192975]
[1754676404133,3.17,179.1,179.08,3.93192975]
[1754676404834,3.17,179.11,179.08,3.93192975]
[1754676405140,3.17,179.11,179.1,3.93192975]
[1754676405332,3.17,179.11,179.02,754.5]
[1754676405533,3.17,179.16,179.09,3.93192975]
[1754676405927,3.17,179.11,179.09,3.93192975]
[1754676406134,3.93192975,179.17,179.08,3.93192975]
[1754676406135,3.17,179.09,179.08,3.93192975]
[1754676406535,3.17,179.09,179.02,754.5]
[1754676406738,3.17,179.09,179.08,3.93192975]
[1754676407341,3.17,179.17,179.08,3.93192975]
[1754676407542,3.17,179.17,179.12,3.93192975]
[1754676407747,5.5814,179.15,179.12,3.93192975]
[1754676407942,3.17,179.13,179.12,3.93192975]
[1754676409546,3.17,179.15,179.12,3.93192975]
[1754676409737,3.17,179.15,179.14,3.93192975]
[1754676410139,3.17,179.15,179.14,9.51362975]
[1754676410739,3.17,179.17,179.14,3.93192975]
[1754676410935,3.17,179.19,179.16,3.93192975]
[1754676411140,3.17,179.18,179.1,148.07192975]
[1754676411344,3.17,179.18,179.17,3.93192975]
[1754676412845,144.16,179.26,179.17,3.93192975]
[1754676413039,5.5791,179.23,179.2,9.51172975]
[1754676413244,3.17,179.25,179.2,3.93192975]
[1754676413447,3.17,179.25,179.22,3.93192975]
[1754676413849,3.17,179.24,179.22,3.93192975]
[1754676414147,3.17,179.23,179.22,3.93192975]
[1754676416242,5.5789,179.23,179.2,3.93192975]
[1754676416542,3.17,179.22,179.2,3.93192975]
[1754676416853,3.17,179.2,179.18,3.93192975]
[1754676417147,12.33437515,179.29,179.1,148.07192975]
[1754676417352,3.17,179.19,179.17,5.5807]
[1754676417753,3.17,179.3,179.1,153.07192975]
[1754676417956,5.5785,179.25,179.2,5.5798]
[1754676418155,3.17,179.23,179.1,153.07192975]
[1754676418456,3.17,179.23,179.22,3.93192975]
[1754676418651,3.17,179.31,179.22,3.93192975]
[1754676419254,12.33437515,179.34,179.2,3.93192975]
[1754676419255,3.93192975,179.29,179.2,3.93192975]
[1754676419555,3.17,179.24,179.22,3.93192975]
[1754676419856,3.17,179.32,179.24,3.93192975]
[1754676420049,3.17,179.32,179.24,5.5785]
[1754676420248,3.93192975,179.31,179.15,375.0]
[1754676420456,3.17,179.26,179.18,3.93192975]
[1754676420654,3.17,179.22,179.18,3.93192975]
[1754676420960,3.17,179.22,179.17,3.93192975]
[1754676421553,8.7493,179.22,179.17,3.93192975]
[1754676421758,3.17,179.21,179.17,3.93192975]
[1754676422156,3.17,179.21,179.17,9.51262975]
[1754676422455,3.17,179.25,179.17,3.93192975]
[1754676422661,3.17,179.25,179.15,375.0]
[1754676422960,3.17,179.19,179.14,3.93192975]
[1754676424757,5.5808,179.17,179.14,3.93192975]
[1754676424958,3.17,179.15,179.14,3.93192975]
[1754676426552,3.17,179.15,179.09,82.20528771]
[1754676426857,3.14,179.17,179.13,3.93192975]
[1754676427060,3.14,179.23,179.15,3.93192975]
[1754676427258,3.14,179.23,179.18,3.93192975]
[1754676427455,3.14,179.23,179.17,3.93192975]
[1754676427657,3.14,179.2,179.16,5.5809]
[1754676427860,3.14,179.2,179.19,0.03883128]
[1754676428359,5.5798,179.2,179.19,0.03883128]
[1754676428564,8.7198,179.2,179.19,0.03883128]
[1754676428952,3.14,179.19,179.09,82.20528771]
[1754676429155,3.14,179.16,179.09,82.20528771]
[1754676429360,3.14,179.14,179.1,9.51462975]
[1754676429661,3.93192975,179.17,179.01,3.93192975]
[1754676429856,3.93192975,179.13,179.05,9.51622975]
[1754676430055,3.14,179.12,179.02,144.01]
[1754676430258,3.17705018,179.12,179.04,3.93192975]
[1754676430465,3.17705018,179.12,178.97,374.98]
[1754676430466,3.14,179.08,179.06,3.93192975]
[1754676430865,3.14,179.07,179.06,3.93192975]
[1754676431065,5.5831,179.1,179.06,3.93192975]
[1754676431267,3.14,179.08,179.06,3.93192975]
[1754676431569,3.14,179.07,179.06,3.93192975]
[1754676432875,3.14,179.06,179.04,11.98745525]
[1754676433167,3.14,179.06,179.04,6.40275525]
[1754676433468,3.14,179.08,179.05,5.5845]
[1754676433766,0.04025419,179.09,179.05,5.6145]
[1754676433958,0.04025419,179.09,179.04,6.40275525]
[1754676434563,3.14,179.06,179.04,6.40275525]
[1754676434959,5.5841,179.07,179.04,6.40275525]
[1754676435160,3.14,179.08,179.04,6.40275525]
[1754676435362,3.14,179.08,178.98,6.43275525]
[1754676435363,3.14,179.07,178.98,6.43275525]
[1754676435764,3.14,179.07,178.98,6.40275525]
[1754676435965,3.14,179.02,178.98,11.98935525]
[1754676436174,3.14,179.01,178.96,6.40275525]
[1754676436361,3.14,179.01,178.89,0.03]
[1754676436667,3.14,179.01,178.92,5.5883]
[1754676436868,0.03585494,178.97,178.93,6.40275525]
[1754676437064,3.17585494,178.97,178.94,0.03]
[1754676437264,3.14,178.96,178.94,0.03]
[1754676437470,0.03585494,178.97,178.96,5.6173]
[1754676437673,0.03585494,178.97,178.96,5.5873]
[1754676437674,3.17585494,178.97,178.96,5.5873]
[1754676437874,0.03585494,178.97,178.96,5.6173]
[1754676439162,0.03585494,178.97,178.96,12.02005525]
[1754676440065,0.03585494,178.97,178.96,6.40275525]
[1754676440269,3.17585494,178.97,178.96,6.40275525]
[1754676440469,3.14,178.96,178.95,6.40275525]
[1754676441676,3.14,178.96,178.92,5.5883]
[1754676441874,3.14,178.96,178.93,6.40275525]
[1754676442179,0.03585494,178.97,178.95,6.40275525]
[1754676442382,3.14,178.96,178.95,6.40275525]
[1754676442882,5.5845,179.05,178.97,0.03]
[1754676443083,3.14,179.01,179.0,6.40275525]
[1754676444471,6.40275525,179.11,179.0,6.40275525]
[1754676444674,3.14,179.1,179.02,6.40275525]
[1754676444880,375.06,179.12,179.02,6.40275525]
[1754676444881,3.14,179.06,179.02,6.40275525]
[1754676445477,3.14,179.05,179.02,6.40275525]
[1754676446175,3.14,179.04,179.02,6.40275525]
[1754676446584,3.14,179.03,179.02,6.40275525]
[1754676446878,375.06,179.12,179.02,6.40275525]
[1754676447179,3.14,179.05,179.04,6.40275525]
[1754676447978,3.14,179.04,179.03,6.40275525]
[1754676448984,3.14,179.04,179.03,11.98785525]
[1754676450585,3.14,179.08,179.04,0.03]
[1754676450777,3.14,179.09,179.07,6.40275525]
[1754676450981,3.14,179.08,179.07,6.40275525]
[1754676451583,3.14,179.08,179.07,11.98655525]
[1754676451884,3.14,179.18,179.07,11.98655525]
[1754676452087,3.14,179.18,179.07,6.40275525]
[1754676453091,5.5826,179.11,179.07,11.98655525]
[1754676453491,3.14,179.08,179.07,6.40275525]
[1754676453791,3.14,179.08,179.05,6.40275525]
[1754676454285,3.14,179.08,179.04,6.40275525]
[1754676454692,5.584,179.07,179.05,3.92905515]
[1754676454989,3.14,179.06,179.05,3.92905515]
[1754676455496,5.5833,179.09,179.05,3.92905515]
[1754676455790,3.14,179.07,179.04,5.6146]
[1754676455991,3.14,179.07,179.04,0.03]
[1754676456691,3.04,179.06,179.04,5.6147]
[1754676456891,3.04,179.06,179.05,3.92905515]
[1754676457190,3.04,179.09,179.06,0.04]
[1754676457386,3.04,179.21,179.08,3.92905515]
[1754676457583,3.04,179.2,179.12,3.92905515]
[1754676457987,3.04,179.13,179.12,3.92905515]
[1754676458187,3.04,179.14,179.12,3.96905515]
[1754676458389,5.5805,179.18,179.12,3.96905515]
[1754676458582,5.5805,179.18,179.17,3.92905515]
[1754676458787,5.5805,179.18,179.12,0.04]
[1754676458788,6.39368574,179.27,179.16,6.39368574]
[1754676458984,5.5807,179.17,179.16,6.39368574]
[1754676459189,8.6207,179.17,179.16,6.39368574]
[1754676459383,3.04,179.17,179.16,6.39368574]
[1754676460093,8.6207,179.17,179.16,6.39368574]
[1754676460597,3.04,179.17,179.16,6.39368574]
[1754676462187,6.39368574,179.27,179.16,6.39368574]
[1754676462392,3.04,179.26,179.21,6.39368574]
[1754676463095,3.04,179.22,179.21,6.39368574]
[1754676463490,8.6192,179.22,179.21,6.39368574]
[1754676463786,3.04,179.22,179.21,6.39368574]
[1754676464690,3.04,179.21,179.2,6.39368574]
[1754676465388,3.04,179.33,179.2,6.43368574]
[1754676465593,3.04,179.33,179.25,6.39368574]
[1754676465789,5.5779,179.26,179.25,6.39368574]
[1754676465985,8.6179,179.26,179.25,6.39368574]
[1754676466386,5.5783,179.25,179.24,6.39368574]
[1754676466990,8.6183,179.25,179.22,0.04]
[1754676467195,8.6183,179.25,179.24,6.39368574]
[1754676468797,3.04,179.25,179.22,6.39368574]
[1754676469199,3.04,179.23,179.22,6.39368574]
[1754676470297,3.04,179.23,179.18,0.04]
[1754676470298,6.39368574,179.3,179.18,0.04]
[1754676470499,3.04,179.29,179.2,6.39368574]
[1754676470699,3.04,179.29,179.19,6.39368574]
[1754676471097,3.04,179.21,179.19,6.39368574]
[1754676471290,3.04,179.21,179.19,6.42368574]
[1754676471493,3.04,179.23,179.2,0.03]
[1754676471703,3.04,179.23,179.21,6.39368574]
[1754676472405,3.04,179.26,179.22,0.03]
[1754676472596,3.04,179.34,179.26,6.39368574]
[1754676473104,5.5772,179.29,179.26,6.39368574]
[1754676473301,3.04,179.27,179.26,6.39368574]
[1754676476394,3.04,179.29,179.27,5.5776]
[1754676476599,3.04,179.29,179.28,6.39368574]
[1754676477897,3.04,179.29,179.24,6.39368574]
[1754676478495,5.5778,179.27,179.24,6.39368574]
[1754676478701,3.04,179.26,179.24,6.39368574]
[1754676479005,3.04,179.25,179.24,6.39368574]
[1754676480099,3.04,179.24,179.22,6.39368574]
[1754676480298,3.04,179.23,179.22,6.39368574]
[1754676480698,3.04,179.23,179.2,0.03]
[1754676480699,3.04,179.3,179.2,6.39368574]
[1754676481104,3.04,179.24,179.2,6.39368574]
[1754676481307,3.04,179.24,179.16,6.39368574]
[1754676481605,6.42989848,179.27,179.16,6.42368574]
[1754676481606,3.04,179.18,179.16,6.42368574]
[1754676481794,3.04,179.24,179.14,6.39368574]
[1754676481994,5.5816,179.15,179.13,375.08]
[1754676482202,3.04,179.14,179.13,375.08]
[1754676482398,3.04,179.14,179.12,6.39368574]
[1754676482601,6.39368574,179.21,179.09,143.59]
[1754676482602,3.04,179.13,179.1,6.39368574]
[1754676482901,3.04,179.12,179.06,6.42368574]
[1754676483200,3.04,179.12,179.04,6.39368574]
[1754676483406,3.04,179.12,179.03,374.84]
[1754676483603,3.04,179.08,179.03,374.84]
[1754676483802,3.04,179.07,179.04,0.03]
[1754676484204,3.04,179.09,179.02,6.39368574]
[1754676484403,3.04,179.09,179.0,143.59]
[1754676484611,3.04,179.09,179.0,6.42368574]
[1754676484803,3.04,179.09,179.0,12.00948574]
[1754676485106,3.04,179.09,179.0,0.03]
[1754676485302,5.5845,179.05,179.01,5.5857]
[1754676485601,3.04,179.03,179.0,6.42368574]
[1754676485802,3.04,179.03,179.01,5.5857]
[1754676486005,3.04,179.03,179.0,6.42368574]
[1754676486204,0.03730139,179.05,179.02,6.39368574]
[1754676486500,0.03730139,179.05,179.04,12.00848574]